bitfinex-derivatives/quotes_ETHF0:USTF0_20250417
["timestamp","ask_amount","ask_price","bid_price","bid_amount"]
[1744928106205,2.92453,1591.9,1591.8,5.7496]
[1744928106406,6.13233,1591.9,1591.8,4.146]
[1744928107208,1.25649,1591.7,1591.6,5.9211]
[1744928107899,2.13539,1591.7,1591.6,7.17767]
[1744928108407,2.28739,1591.7,1591.6,5.9211]
[1744928109309,2.28739,1591.7,1591.6,7.17767]
[1744928109607,1.40849,1591.7,1591.6,7.17767]
[1744928109906,0.152,1591.7,1591.6,7.17767]
[1744928110107,3.01377,1591.8,1591.7,1.25649]
[1744928110304,3.01377,1591.8,1591.7,3.02749]
[1744928110503,3.01377,1591.8,1591.7,1.771]
[1744928110706,1.25649,1591.7,1591.6,4.146]
[1744928110911,5.6257,1591.7,1591.6,5.40257]
[1744928111100,7.03419,1591.7,1591.6,4.146]
[1744928111608,7.03419,1591.7,1591.6,5.40257]
[1744928111908,4.9651,1591.7,1591.6,7.17357]
[1744928112105,6.22159,1591.7,1591.6,5.917]
[1744928113109,6.22159,1591.7,1591.6,7.17357]
[1744928113610,6.22159,1591.7,1591.6,5.917]
[1744928114010,6.22159,1591.7,1591.6,4.146]
[1744928116410,4.9651,1591.7,1591.4,4.179]
[1744928116712,1.25665,1591.5,1591.4,5.43572]
[1744928117011,1.25665,1591.5,1591.4,7.07822]
[1744928117214,3.14175,1591.5,1591.4,5.8215]
[1744928118916,3.14175,1591.5,1591.4,7.07822]
[1744928120110,3.14175,1591.5,1591.4,5.8215]
[1744928120310,6.34955,1591.5,1591.4,4.179]
[1744928120617,1.25672,1591.4,1591.3,0.84934495]
[1744928120818,2.92202,1591.4,1591.3,0.84934495]
[1744928121210,3.07402,1591.4,1591.3,0.84934495]
[1744928122618,3.07402,1591.4,1591.3,2.10614495]
[1744928122814,3.07402,1591.4,1591.3,3.80944495]
[1744928123721,0.152,1591.4,1591.3,3.80944495]
[1744928124022,1.40872,1591.4,1591.3,3.80944495]
[1744928124216,1.25672,1591.4,1591.3,3.80944495]
[1744928125922,1.25672,1591.4,1591.3,2.55264495]
[1744928126123,1.25672,1591.4,1591.3,0.84934495]
[1744928126323,3.08852,1591.4,1591.3,0.00944495]
[1744928133725,3.08852,1591.4,1590.7,8.29920645]
[1744928133726,1.2572,1590.8,1590.7,8.29920645]
[1744928133931,1.2572,1590.8,1590.7,9.18770645]
[1744928134228,1.2572,1590.8,1590.7,12.10358645]
[1744928134623,1.2572,1590.8,1590.7,12.10352645]
[1744928135729,1.2572,1590.8,1590.7,10.84630645]
[1744928136025,1.2572,1590.8,1590.7,12.10358645]
[1744928136724,1.2572,1590.8,1590.7,10.84630645]
[1744928136929,1.26661495,1590.9,1590.8,1.2572]
[1744928137124,0.00944495,1590.9,1590.8,2.987]
[1744928137426,1.25699,1591.1,1591.0,1.25704]
[1744928137632,1.25699,1591.1,1591.0,5.43704]
[1744928138130,1.25699,1591.1,1591.0,8.02884]
[1744928138330,1.25695,1591.2,1591.1,1.25694]
[1744928138524,1.25695,1591.2,1591.1,2.98674]
[1744928139033,2.4342,1591.3,1591.2,1.25688]
[1744928139034,2.87984,1591.3,1591.2,1.25688]
[1744928139228,2.87984,1591.3,1591.2,3.84358]
[1744928139527,2.87984,1591.3,1591.2,2.5867]
[1744928140232,6.08764,1591.3,1591.2,1.7298]
[1744928140732,1.25688,1591.2,1591.1,1.25696]
[1744928140929,2.89968,1591.2,1591.1,2.90886]
[1744928141128,1.25696,1591.1,1591.0,5.042]
[1744928141429,3.78766,1591.1,1591.0,5.042]
[1744928141630,1.25696,1591.1,1591.0,7.95094]
[1744928141835,1.25696,1591.1,1591.0,6.6939]
[1744928142238,1.25696,1591.1,1591.0,7.95094]
[1744928142934,2.89972,1591.2,1591.1,1.25696]
[1744928143238,1.25687,1591.3,1591.2,1.25686]
[1744928143432,1.25687,1591.3,1591.2,2.08216]
[1744928143634,1.25687,1591.3,1591.2,0.8253]
[1744928144137,1.25687,1591.3,1591.2,2.4413]
[1744928144325,3.00577,1591.3,1591.2,2.4413]
[1744928144526,3.00577,1591.3,1591.2,3.69818]
[1744928144730,3.00577,1591.3,1591.2,2.4413]
[1744928144931,3.00577,1591.3,1591.2,3.69818]
[1744928146739,3.00577,1591.3,1591.2,2.4413]
[1744928148438,3.00577,1591.3,1591.2,1.616]
[1744928148638,1.25696,1591.1,1591.0,7.12288]
[1744928148836,2.89045,1591.2,1591.1,1.25696]
[1744928149139,2.89045,1591.2,1591.1,2.98686]
[1744928149640,2.89045,1591.2,1591.1,1.7299]
[1744928150941,2.89045,1591.2,1591.1,2.98686]
[1744928151944,1.6335,1591.2,1591.1,2.98686]
[1744928152240,1.25683,1591.3,1591.2,1.25688]
[1744928152440,2.92853,1591.3,1591.2,1.6829]
[1744928153537,1.25688,1591.2,1591.1,1.25691]
[1744928153743,2.92858,1591.2,1591.1,2.93981]
[1744928154649,1.25696,1591.1,1591.0,5.042]
[1744928154939,3.75776,1591.1,1591.0,5.042]
[1744928155444,3.75776,1591.1,1591.0,4.18]
[1744928155643,5.7086,1591.1,1590.8,14.52916645]
[1744928155943,4.46492,1590.9,1590.8,8.29920645]
[1744928156342,6.14892,1590.9,1590.8,8.29920645]
[1744928157245,4.8918,1590.9,1590.8,8.29920645]
[1744928157447,3.2078,1590.9,1590.8,9.55640645]
[1744928157750,3.75778,1591.1,1591.0,1.25704]
[1744928157951,2.94098,1591.1,1591.0,1.25704]
[1744928158446,2.94098,1591.1,1591.0,2.95704]
[1744928158844,2.94098,1591.1,1591.0,1.7]
[1744928159446,3.76728,1591.1,1591.0,1.7]
[1744928159642,1.25704,1591.0,1590.9,2.13757]
[1744928159838,1.25704,1591.0,1590.9,3.83757]
[1744928160038,2.98914,1591.0,1590.9,3.83757]
[1744928161747,2.98914,1591.0,1590.9,0.8805]
[1744928161948,6.19694,1591.0,1590.9,5.0465]
[1744928162256,6.34894,1591.0,1590.9,5.0465]
[1744928164251,6.34894,1591.0,1590.9,6.30362]
[1744928164551,6.34894,1591.0,1590.9,8.00172]
[1744928165155,6.19694,1591.0,1590.9,8.00172]
[1744928165649,6.19694,1591.0,1590.9,5.0465]
[1744928166255,6.19694,1591.0,1590.9,6.30362]
[1744928166449,2.98914,1591.0,1590.9,6.30362]
[1744928167256,1.7321,1591.0,1590.9,6.30362]
[1744928167457,2.98914,1591.0,1590.9,7.18382]
[1744928168149,2.98914,1591.0,1590.9,6.30362]
[1744928168350,2.98914,1591.0,1590.9,5.0465]
[1744928168648,2.98914,1591.0,1590.9,6.30362]
[1744928168848,2.98914,1591.0,1590.9,8.00402]
[1744928169251,1.7321,1591.0,1590.9,8.00402]
[1744928169452,3.2078,1591.2,1591.0,1.25704]
[1744928169659,4.9776,1591.2,1591.1,1.25696]
[1744928169853,11.59572525,1591.7,1591.2,3.14221]
[1744928170043,1.25672,1591.4,1591.3,6.30397]
[1744928170250,1.2567,1591.5,1591.4,1.25672]
[1744928170449,2.89665,1591.5,1591.4,2.87892]
[1744928171057,1.25665,1591.5,1591.4,2.87892]
[1744928171359,1.25665,1591.5,1591.4,3.71492]
[1744928171855,2.4788,1591.6,1591.5,1.25665]
[1744928172064,8.38792525,1591.7,1591.6,1.25657]
[1744928172258,8.38792525,1591.7,1591.6,5.42357]
[1744928172951,1.25647,1591.8,1591.6,5.42357]
[1744928173152,2.87867,1591.8,1591.7,2.5751]
[1744928173648,4.0731,1591.9,1591.7,2.5751]
[1744928173953,1.25641,1591.8,1591.7,1.7038]
[1744928174153,2.87861,1591.8,1591.7,3.4574]
[1744928174351,2.87861,1591.8,1591.7,2.5751]
[1744928174547,1.25649,1591.7,1591.6,4.167]
[1744928174754,2.87869,1591.7,1591.6,4.167]
[1744928175249,3.03069,1591.7,1591.6,4.167]
[1744928176560,6.23849,1591.7,1591.6,4.167]
[1744928177961,3.03069,1591.7,1591.6,4.167]
[1744928178963,3.03069,1591.7,1591.6,5.8703]
[1744928179656,3.03069,1591.7,1591.6,7.12687]
[1744928180057,2.87869,1591.7,1591.6,5.8703]
[1744928181259,3.03069,1591.7,1591.6,5.8703]
[1744928181460,3.03069,1591.7,1591.6,7.12687]
[1744928181652,1.7742,1591.7,1591.6,7.12687]
[1744928182159,1.6222,1591.7,1591.6,7.12687]
[1744928182458,2.87869,1591.7,1591.6,7.12687]
[1744928183050,2.87869,1591.7,1591.6,5.8703]
[1744928183251,2.87869,1591.7,1591.6,7.12687]
[1744928185761,2.87869,1591.7,1591.6,5.8703]
[1744928185959,6.08649,1591.7,1591.6,4.167]
[1744928186162,3.03069,1591.7,1591.6,4.167]
[1744928186461,3.03069,1591.7,1591.6,5.42357]
[1744928187358,6.23849,1591.7,1591.6,4.167]
[1744928187862,6.23849,1591.7,1591.5,2.99551495]
[1744928187863,1.25657,1591.6,1591.5,0.00944495]
[1744928188058,3.74907,1591.6,1591.5,4.95e-06]
[1744928188364,8.90107,1591.6,1591.5,4.95e-06]
[1744928198661,3.90107,1591.6,1591.5,4.95e-06]
[1744928219586,1.40857,1591.6,1591.5,4.95e-06]
[1744928219783,1.40857,1591.6,1591.5,2.49650495]
[1744928224088,1.40857,1591.6,1591.5,1.61370495]
[1744928224290,3.96657,1591.6,1591.5,1.61370495]
[1744928224589,1.40857,1591.6,1591.5,2.46480495]
[1744928227483,1.40857,1591.6,1591.5,4.95e-06]
[1744928227688,3.98307,1591.6,1591.5,4.95e-06]
[1744928227992,8.12107,1591.6,1591.5,4.95e-06]
[1744928228285,3.10977,1591.6,1591.5,4.95e-06]
[1744928230990,3.10977,1591.6,1591.5,1.72560495]
[1744928231290,3.10977,1591.6,1591.5,2.58000495]
[1744928231791,3.10977,1591.6,1591.5,1.72560495]
[1744928232692,1.40857,1591.6,1591.5,1.72560495]
[1744928234699,3.08727,1591.6,1591.5,1.72560495]
[1744928235798,3.08727,1591.6,1591.5,4.95e-06]
[1744928238696,3.92607,1591.6,1591.5,4.95e-06]
[1744928240402,8.92607,1591.6,1591.5,4.95e-06]
[1744928242606,19.29907204,1591.6,1591.5,4.95e-06]
[1744928243805,1.25712,1590.9,1590.8,1.6713]
[1744928244005,4.46492,1590.9,1590.8,1.6713]
[1744928244208,4.46492,1590.9,1590.8,6.6713]
[1744928244700,6.06852,1590.9,1590.8,1.6713]
[1744928246916,1.2572,1590.8,1590.7,0.00944495]
[1744928247099,3.0273,1590.8,1590.7,0.00944495]
[1744928247410,3.0273,1590.8,1590.7,1.63714495]
[1744928247809,3.0273,1590.8,1590.7,0.00944495]
[1744928248713,7.1713,1590.8,1590.7,4.95e-06]
[1744928249212,7.3233,1590.8,1590.7,4.95e-06]
[1744928250211,7.1713,1590.8,1590.7,4.95e-06]
[1744928250814,12.1713,1590.8,1590.7,4.95e-06]
[1744928251013,7.1713,1590.8,1590.7,4.95e-06]
[1744928251210,7.3233,1590.8,1590.7,4.95e-06]
[1744928255903,1.4092,1590.8,1590.7,5.00000495]
[1744928256112,4.46499,1590.9,1590.7,6.25728495]
[1744928256409,4.46499,1590.9,1590.8,1.7613]
[1744928256613,3.2078,1590.9,1590.8,7.9719]
[1744928256805,13.34586877,1591.3,1590.9,1.25707]
[1744928257011,1.25693,1591.2,1591.0,3.85578]
[1744928257207,1.25693,1591.2,1591.1,1.7613]
[1744928257712,1.25693,1591.2,1591.1,6.7613]
[1744928258117,1.40893,1591.2,1591.1,6.7613]
[1744928258613,0.152,1591.2,1591.1,12.16326]
[1744928258813,1.40888,1591.2,1591.1,10.9063]
[1744928259425,1.40888,1591.2,1591.1,5.9063]
[1744928260221,0.152,1591.2,1591.1,12.16326]
[1744928260413,1.40888,1591.2,1591.1,12.16326]
[1744928260707,1.40888,1591.2,1591.1,10.9063]
[1744928261120,1.25688,1591.2,1591.1,10.9063]
[1744928261621,1.25688,1591.2,1591.1,12.16326]
[1744928262518,1.25688,1591.2,1591.1,10.9063]
[1744928262723,1.25688,1591.2,1591.1,5.9063]
[1744928263423,1.25688,1591.2,1591.1,7.16326]
[1744928264023,1.25688,1591.2,1591.1,12.16326]
[1744928264523,1.25688,1591.2,1591.1,5.9063]
[1744928265220,1.40888,1591.2,1591.1,5.9063]
[1744928265921,1.40888,1591.2,1591.1,7.16326]
[1744928266422,1.40888,1591.2,1591.1,5.9063]
[1744928266723,1.40888,1591.2,1591.1,7.16326]
[1744928267031,0.152,1591.2,1591.1,12.16326]
[1744928267322,1.25688,1591.2,1591.1,12.16326]
[1744928267620,1.25688,1591.2,1591.1,13.00376]
[1744928268722,1.25686,1591.3,1591.2,1.25685]
[1744928269123,1.40886,1591.3,1591.2,1.25685]
[1744928269724,0.152,1591.3,1591.2,6.25685]
[1744928270117,3.21724,1591.7,1591.6,1.25657]
[1744928270421,3.21724,1591.7,1591.6,5.40557]
[1744928270625,0.00944,1591.7,1591.6,5.40557]
[1744928270814,0.00944,1591.7,1591.6,10.40557]
[1744928271219,1.26593,1591.7,1591.6,5.40557]
[1744928271423,1.26593,1591.7,1591.6,10.40557]
[1744928273630,0.00944,1591.7,1591.6,10.40557]
[1744928273931,0.00944,1591.7,1591.6,5.40557]
[1744928274127,1.26593,1591.7,1591.6,5.40557]
[1744928274527,0.00944,1591.7,1591.6,5.40557]
[1744928279127,0.16144,1591.7,1591.6,5.40557]
[1744928279332,1.41793,1591.7,1591.6,5.40557]
[1744928279630,0.16144,1591.7,1591.6,5.40557]
[1744928280335,0.00944,1591.7,1591.6,5.40557]
[1744928281236,2.90303,1591.7,1591.6,5.40557]
[1744928281623,2.90303,1591.7,1591.6,4.149]
[1744928281833,2.90303,1591.7,1591.6,5.40557]
[1744928282035,2.90303,1591.7,1591.6,4.149]
[1744928282235,3.05503,1591.7,1591.6,4.149]
[1744928282533,1.25657,1591.6,1591.4,4.147]
[1744928282840,5.28295,1591.5,1591.4,4.147]
[1744928283132,5.43495,1591.5,1591.4,4.147]
[1744928283334,7.09735,1591.5,1591.4,4.147]
[1744928283725,3.14182,1591.4,1591.2,4.147]
[1744928283927,4.4646,1591.3,1591.2,4.147]
[1744928284136,6.279,1591.3,1591.2,4.147]
[1744928285235,6.279,1591.3,1591.2,5.40388]
[1744928285537,6.279,1591.3,1591.2,4.147]
[1744928285737,5.0222,1591.3,1591.2,5.40388]
[1744928286138,4.8702,1591.3,1591.2,5.40388]
[1744928286843,0.8185,1591.5,1591.4,1.25672]
[1744928287142,2.434,1591.5,1591.3,1.6809]
[1744928287332,1.25672,1591.4,1591.3,2.93767]
[1744928287532,2.87229,1591.4,1591.3,1.2568]
[1744928288135,1.7675,1591.4,1591.3,1.2568]
[1744928288435,1.7675,1591.4,1591.3,2.9377]
[1744928288632,0.152,1591.4,1591.3,2.9377]
[1744928289237,4.46446,1591.5,1591.4,1.25672]
[1744928289238,6.22346,1591.5,1591.4,1.25672]
[1744928289436,6.22346,1591.5,1591.4,2.92302]
[1744928289943,6.22346,1591.5,1591.4,1.6663]
[1744928290136,6.37546,1591.5,1591.4,1.6663]
[1744928290439,1.25672,1591.4,1591.3,1.25674]
[1744928290642,3.01572,1591.4,1591.3,1.25674]
[1744928291233,1.2568,1591.3,1591.2,4.147]
[1744928291539,7.0255,1591.3,1591.2,4.147]
[1744928292234,7.1775,1591.3,1591.2,4.147]
[1744928293038,3.9697,1591.3,1591.2,4.147]
[1744928293242,7.1775,1591.3,1591.2,5.40388]
[1744928294745,7.1775,1591.3,1591.2,4.147]
[1744928295745,7.1775,1591.3,1591.2,5.40388]
[1744928296343,3.9697,1591.3,1591.2,5.40388]
[1744928296538,2.7129,1591.3,1591.2,5.40388]
[1744928297045,2.7129,1591.3,1591.2,6.22798]
[1744928297441,2.7129,1591.3,1591.2,7.84778]
[1744928297648,3.1678,1591.3,1591.2,7.84778]
[1744928300050,1.25704,1591.1,1591.0,5.428]
[1744928300250,4.56453,1591.2,1591.1,1.25696]
[1744928301153,4.71648,1591.2,1591.1,1.25696]
[1744928301849,1.25696,1591.1,1591.0,7.18248]
[1744928302048,2.88676,1591.1,1591.0,7.18248]
[1744928302551,2.88676,1591.1,1591.0,5.42798]
[1744928303650,2.88676,1591.1,1591.0,4.171]
[1744928304247,3.03876,1591.1,1591.0,4.171]
[1744928305352,1.25704,1591.0,1590.9,1.2571]
[1744928305655,2.92034,1591.0,1590.9,1.2571]
[1744928305854,1.25712,1590.9,1590.8,4.171]
[1744928306050,3.74612,1590.9,1590.8,4.171]
[1744928306352,3.74612,1590.9,1590.8,5.4282]
[1744928307251,3.74612,1590.9,1590.8,4.171]
[1744928308851,1.2572,1590.8,1590.7,4.95e-06]
[1744928309047,7.0657,1590.8,1590.7,4.95e-06]
[1744928310253,12.0657,1590.8,1590.7,4.95e-06]
[1744928313854,7.0657,1590.8,1590.7,4.95e-06]
[1744928317661,3.8579,1590.8,1590.7,4.95e-06]
[1744928317954,7.0657,1590.8,1590.7,4.95e-06]
[1744928322165,4.465,1590.8,1590.7,4.95e-06]
[1744928322465,3.2078,1591.1,1590.7,10.43028495]
[1744928322657,18.85117877,1591.5,1590.8,5.7183]
[1744928322658,1.7082,1591.2,1590.8,5.7183]
[1744928322861,1.25711,1591.0,1590.9,2.90532]
[1744928323058,1.25711,1591.0,1590.9,1.25712]
[1744928323262,1.25705,1591.0,1590.9,1.25705]
[1744928324367,3.2078,1591.3,1590.9,5.0]
[1744928324561,1.25696,1591.1,1591.0,4.173]
[1744928324967,1.25696,1591.1,1591.0,9.173]
[1744928325665,1.25696,1591.1,1591.0,4.173]
[1744928326666,2.06596,1591.1,1591.0,4.173]
[1744928327166,2.21796,1591.1,1591.0,4.173]
[1744928328061,0.961,1591.1,1590.8,8.2411]
[1744928328268,1.25712,1590.9,1590.8,7.3788]
[1744928328866,1.2572,1590.8,1590.7,4.95e-06]
[1744928329067,2.0874,1590.8,1590.7,4.95e-06]
[1744928329268,3.7027,1590.8,1590.7,4.95e-06]
[1744928330671,8.7027,1590.8,1590.7,4.95e-06]
[1744928331169,8.8547,1590.8,1590.7,4.95e-06]
[1744928333167,3.8547,1590.8,1590.7,4.95e-06]
[1744928334272,3.7027,1590.8,1590.7,4.95e-06]
[1744928337068,3.7027,1590.8,1590.7,1.63070495]
[1744928338872,3.7027,1590.8,1590.7,4.95e-06]
[1744928341977,7.8737,1590.8,1590.7,4.95e-06]
[1744928342178,8.0257,1590.8,1590.7,4.95e-06]
[1744928346967,13.0257,1590.8,1590.7,4.95e-06]
[1744928348079,18.9957,1590.8,1590.7,4.95e-06]
[1744928351184,27.39046877,1590.8,1590.7,4.95e-06]
[1744928352482,22.39046877,1590.8,1590.7,4.95e-06]
[1744928354082,13.9957,1590.8,1590.7,4.95e-06]
[1744928357285,17.2035,1590.8,1590.7,4.95e-06]
[1744928358987,11.2335,1590.8,1590.7,4.95e-06]
[1744928371407,4.617,1590.8,1590.7,4.95e-06]
[1744928371705,0.152,1590.8,1590.7,7.52710495]
[1744928371894,9.65185877,1591.0,1590.7,7.52710495]
[1744928372099,9.65185877,1591.0,1590.8,2.96937]
[1744928372301,9.65185877,1591.0,1590.9,1.7122]
[1744928372498,9.65185877,1591.0,1590.9,7.13732]
[1744928372499,8.39476877,1591.0,1590.9,7.13732]
[1744928372702,8.39476877,1591.0,1590.9,12.13732]
[1744928372909,9.65180877,1591.0,1590.9,10.8802]
[1744928373510,8.39476877,1591.0,1590.9,12.13732]
[1744928373808,1.25703,1591.1,1590.9,12.13732]
[1744928374008,1.25703,1591.1,1591.0,1.7122]
[1744928374209,1.25703,1591.1,1591.0,7.5292]
[1744928375007,9.65170877,1591.2,1591.0,8.78624]
[1744928375209,8.54676877,1591.2,1591.1,1.7338]
[1744928375411,9.80364877,1591.2,1591.1,1.7338]
[1744928375601,9.80364877,1591.2,1591.1,6.7338]
[1744928376110,9.65164877,1591.2,1591.1,6.7338]
[1744928376715,1.25688,1591.2,1591.1,6.7338]
[1744928376914,1.25688,1591.2,1591.1,1.7338]
[1744928379210,1.40888,1591.2,1591.1,1.7338]
[1744928385417,1.25696,1591.1,1591.0,1.6728]
[1744928385617,1.25696,1591.1,1591.0,3.3572]
[1744928389220,1.40896,1591.1,1591.0,3.3572]
[1744928391918,1.40896,1591.1,1591.0,4.61424]
[1744928392119,1.40896,1591.1,1591.0,3.3572]
[1744928393709,1.40896,1591.1,1591.0,4.61424]
[1744928393914,1.40896,1591.1,1591.0,2.5402]
[1744928394114,3.17536,1591.1,1591.0,2.5402]
[1744928395113,1.25712,1590.9,1590.8,4.094]
[1744928395313,1.25712,1590.9,1590.8,7.8285]
[1744928395521,1.25712,1590.9,1590.8,12.8285]
[1744928395714,1.25712,1590.9,1590.8,6.5713]
[1744928396017,1.25712,1590.9,1590.8,7.8285]
[1744928396923,1.25712,1590.9,1590.8,4.6207]
[1744928397121,1.25712,1590.9,1590.8,7.8285]
[1744928397823,1.25707,1591.0,1590.9,1.25704]
[1744928398021,1.25707,1591.0,1590.9,2.95734]
[1744928398615,1.25707,1591.0,1590.9,7.95734]
[1744928398919,4.46474,1591.2,1591.1,1.25696]
[1744928399121,1.25696,1591.1,1591.0,7.16887]
[1744928399317,1.25696,1591.1,1591.0,5.9119]
[1744928399517,1.25696,1591.1,1591.0,10.9119]
[1744928400023,1.25696,1591.1,1591.0,5.9119]
[1744928400218,3.00116,1591.1,1591.0,1.7679]
[1744928400427,1.25712,1590.9,1590.8,9.9787]
[1744928401122,1.25712,1590.9,1590.8,5.003]
[1744928401319,2.14172,1590.9,1590.8,4.144]
[1744928401620,2.14172,1590.9,1590.7,3.02518495]
[1744928401621,1.2572,1590.8,1590.7,3.02518495]
[1744928403224,1.2572,1590.8,1590.7,1.76790495]
[1744928403425,1.2572,1590.8,1590.7,3.02518495]
[1744928404028,1.2572,1590.8,1590.7,1.76790495]
[1744928404227,1.2572,1590.8,1590.7,4.95e-06]
[1744928404527,2.959,1590.8,1590.7,4.95e-06]
[1744928405119,11.1668,1590.8,1590.7,4.95e-06]
[1744928405520,7.8741,1590.8,1590.7,4.95e-06]
[1744928407527,4.6663,1590.8,1590.7,1.72770495]
[1744928410731,4.6663,1590.8,1590.7,2.98498495]
[1744928410936,2.9645,1590.8,1590.7,2.98498495]
[1744928411237,2.9645,1590.8,1590.7,1.72770495]
[1744928412643,1.7073,1590.8,1590.7,2.98498495]
[1744928412937,1.25711,1591.0,1590.8,1.2572]
[1744928413148,1.25711,1591.0,1590.9,2.5486]
[1744928413645,3.00691,1591.0,1590.9,2.5486]
[1744928414846,3.00691,1591.0,1590.9,3.4144]
[1744928415141,3.00691,1591.0,1590.9,4.67152]
[1744928415350,1.25711,1591.0,1590.9,4.67152]
[1744928417146,1.40911,1591.0,1590.9,4.67152]
[1744928418046,0.152,1591.0,1590.9,4.67152]
[1744928418352,1.25702,1591.1,1591.0,1.257]
[1744928418546,1.25702,1591.1,1591.0,7.1373]
[1744928419052,3.78924,1591.2,1591.1,1.25696]
[1744928419255,3.78924,1591.2,1591.1,3.00426]
[1744928420157,3.78924,1591.2,1591.1,1.7473]
[1744928421348,3.78924,1591.2,1591.1,3.00426]
[1744928423254,3.94124,1591.2,1591.1,3.00426]
[1744928423752,3.94124,1591.2,1591.1,1.7473]
[1744928424254,3.94124,1591.2,1591.1,3.00426]
[1744928426156,3.78924,1591.2,1591.1,3.00426]
[1744928427352,1.25696,1591.1,1591.0,5.38998]
[1744928427558,2.95976,1591.1,1591.0,4.133]
[1744928427755,1.25704,1591.0,1590.9,4.46492]
[1744928427959,3.80974,1591.0,1590.9,4.46492]
[1744928428861,3.80974,1591.0,1590.9,3.2078]
[1744928429261,1.25712,1590.9,1590.8,4.132]
[1744928429564,1.2572,1590.8,1590.7,8.2992114]
[1744928429955,2.9085,1590.8,1590.7,8.2992114]
[1744928430151,2.9085,1590.8,1590.7,4.95e-06]
[1744928433165,1.6513,1590.8,1590.7,1.25728495]
[1744928433362,2.9085,1590.8,1590.7,4.95e-06]
[1744928443271,8.0605,1590.8,1590.7,4.95e-06]
[1744928445170,2.9085,1590.8,1590.7,4.95e-06]
[1744928446074,3.0605,1590.8,1590.7,4.95e-06]
[1744928450474,8.0605,1590.8,1590.7,4.95e-06]
[1744928454180,1.25775,1590.1,1590.0,1.6889]
[1744928454476,1.25775,1590.1,1590.0,2.5076]
[1744928455266,3.02495,1590.1,1590.0,1.6441]
[1744928455472,1.25783,1590.0,1589.9,0.00944495]
[1744928455674,3.02503,1590.0,1589.9,0.00944495]
[1744928459069,1.25799,1589.8,1589.7,8.29920645]
[1744928459274,4.46579,1589.8,1589.7,8.29920645]
[1744928459480,4.46579,1589.8,1589.7,5.70633645]
[1744928459677,1.25807,1589.7,1589.6,12.45794918]
[1744928459983,2.97127,1589.7,1589.6,12.45794918]
[1744928460679,1.25815,1589.6,1589.5,0.00944495]
[1744928460878,11.19175,1589.6,1589.5,0.00944495]
[1744928461477,4.46595,1589.6,1589.5,0.00944495]
[1744928462578,3.2078,1589.6,1589.5,0.00944495]
[1744928462782,3.2078,1589.6,1589.5,2.10897495]
[1744928462985,4.46595,1589.6,1589.5,0.85074495]
[1744928463380,4.46595,1589.6,1589.5,2.51974495]
[1744928464885,1.2581,1589.7,1589.5,3.77797495]
[1744928465185,1.2581,1589.7,1589.6,1.669]
[1744928467582,2.87662,1589.8,1589.6,1.669]
[1744928467781,3.2078,1589.9,1589.7,0.856]
[1744928467985,4.46571,1589.9,1589.8,1.6117]
[1744928468182,2.92971,1589.9,1589.8,1.6117]
[1744928469684,2.92971,1589.9,1589.8,2.5007]
[1744928474296,6.13751,1589.9,1589.8,2.5007]
[1744928474898,2.92971,1589.9,1589.8,2.5007]
[1744928480508,2.92971,1589.9,1589.8,1.6117]
[1744928481411,2.92971,1589.9,1589.8,2.86969]
[1744928481715,2.92971,1589.9,1589.8,1.6117]
[1744928487913,4.0922,1590.1,1589.8,1.6117]
[1744928488114,0.00944495,1590.2,1590.1,1.25775]
[1744928488610,1.26711495,1590.2,1590.1,1.25775]
[1744928488819,1.26711495,1590.2,1590.1,3.02395]
[1744928489109,0.00944495,1590.2,1590.1,3.02395]
[1744928489417,1.26711495,1590.2,1590.1,3.02395]
[1744928490020,0.00944495,1590.2,1590.1,3.02395]
[1744928491215,1.26711495,1590.2,1590.1,3.02395]
[1744928491615,0.00944495,1590.2,1590.1,3.02395]
[1744928491818,0.00944495,1590.2,1590.1,11.23175]
[1744928495924,0.00944495,1590.2,1590.1,6.23175]
[1744928497117,0.00944495,1590.2,1590.1,3.02395]
[1744928498325,1.6793,1590.6,1590.4,1.25752]
[1744928498621,1.25748,1590.5,1590.4,1.25752]
[1744928498823,2.91068,1590.5,1590.4,1.25752]
[1744928499124,2.91068,1590.5,1590.4,2.98272]
[1744928499520,0.00944495,1590.6,1590.5,1.25744]
[1744928499720,1.26680495,1590.6,1590.5,2.4335]
[1744928500226,2.94630495,1590.6,1590.5,3.69094]
[1744928502126,2.94630495,1590.6,1590.5,2.4335]
[1744928502425,2.94630495,1590.6,1590.5,2.88034]
[1744928504024,0.00944495,1590.6,1590.5,2.88034]
[1744928504527,1.26680495,1590.6,1590.5,2.88034]
[1744928504924,0.00944495,1590.6,1590.5,2.88034]
[1744928508431,1.26680495,1590.6,1590.5,2.88034]
[1744928508632,3.85250495,1590.6,1590.5,2.88034]
[1744928511631,2.59514495,1590.6,1590.5,2.88034]
[1744928514528,0.00944495,1590.6,1590.5,2.88034]
[1744928514730,0.8316,1591.0,1590.9,1.25712]
[1744928514933,1.25699,1591.1,1591.0,1.25704]
[1744928515231,1.25699,1591.1,1590.9,4.122]
[1744928515232,1.25704,1591.0,1590.9,4.122]
[1744928515435,1.25704,1591.0,1590.9,5.37912]
[1744928515937,1.25704,1591.0,1590.9,4.122]
[1744928516536,1.2572,1590.8,1590.7,5.37821]
[1744928517438,2.8788,1590.8,1590.7,5.37821]
[1744928517836,1.6216,1590.8,1590.5,7.3288]
[1744928518034,1.25736,1590.6,1590.5,8.58617]
[1744928518539,2.06786,1590.6,1590.5,8.58617]
[1744928518735,0.8105,1590.6,1590.5,8.58617]
[1744928519039,1.7015,1590.7,1590.6,1.25736]
[1744928519242,1.7015,1590.7,1590.6,2.13296]
[1744928520041,1.7015,1590.7,1590.6,2.93466]